[Event "10th Uppsala Young Champions 2023"]
[Site "Uppsala"]
[Date "2023.10.28"]
[Round "3.10"]
[White "Mai, Alexander Oliver"]
[Black "Nilsson, Oliver"]
[Result "1-0"]
[ECO "A49"]
[WhiteElo "2118"]
[BlackElo "1933"]
[Annotator "NA"]
[PlyCount "77"]
[EventDate "2023.10.27"]
[EventType "swiss"]
[EventCountry "SWE"]
[SourceTitle "playchess.com"]
[Source "ChessBase"]
[SourceQuality "1"]
[TimeControl "5400+30"]

1. Nf3 {[%emt 0:00:06]} Nf6 {[%emt 0:00:16]} 2. g3 {[%emt 0:00:11]} g6 {[%emt 0:00:15]} 3. Bg2 {[%emt 0:00:06]} Bg7 {[%emt 0:00:03]} 4. O-O {[%emt 0:00:08]} O-O {[%emt 0:00:02]} 5. d4 {[%emt 0:00:29]} d6 {[%emt 0:00:04]} 6. a4 {[%emt 0:02:32]} c5 {[%emt 0:01:45]} 7. dxc5 {[%emt 0:06:59]} dxc5 {[%emt 0:00:27]} 8. c3 {[%emt 0:01:06]} Nc6 {[%emt 0:00:50]} 9. Be3 {[%emt 0:03:53]} c4 {[%emt 0:07:50]} 10. Na3 {[%emt 0:04:19]} Na5 {[%emt 0:00:42]} 11. Qxd8 {[%emt 0:02:08]} Rxd8 {[%emt 0:00:16]} 12. Nb5 {[%emt 0:13:21]} Bd7 {[%emt 0:18:43]} 13. Ne5 {[%emt 0:06:50]} a6 {[%emt 0:36:21]} 14. Nc7 {[%emt 0:08:21]} Rac8 {[%emt 0:08:19]} 15. Bb6 {[%emt 0:00:30]} Nb3 {[%emt 0:03:24]} 16. Rad1 {[%emt 0:03:30]} Bxa4 {[%emt 0:07:42]} 17. Bxb7 {[%emt 0:01:42]} Rxd1 {[%emt 0:00:12]} 18. Bxc8 {[%emt 0:01:16]} Rxf1+ {[%emt 0:00:38]} 19. Kxf1 {[%emt 0:00:08]} Nd2+ {[%emt 0:03:37]} 20. Ke1 {[%emt 0:01:56]} Nfe4 {[%emt 0:00:16]} 21. Ng4 {[%emt 0:03:25]} Nd6 {[%emt 0:07:00]} 22. Bxa6 {[%emt 0:01:25]} Nb3 {[%emt 0:00:12]} 23. f4 {[%emt 0:06:50]} Bc6 {[%emt 0:02:33]} 24. Ne3 {[%emt 0:00:37]} Ne4 {[%emt 0:00:30]} 25. Bxc4 {[%emt 0:01:11]} Nbc5 {[%emt 0:00:31]} 26. Nd1 {[%emt 0:02:45]} Na4 {[%emt 0:00:15]} 27. Bd4 {[%emt 0:00:45]} Bxd4 {[%emt 0:00:27]} 28. cxd4 {[%emt 0:00:01]} Nd6 {[%emt 0:00:19]} 29. Bd3 {[%emt 0:00:56]} f5 {[%emt 0:00:36]} 30. Kd2 {[%emt 0:01:19]} Ne4+ {[%emt 0:00:33]} 31. Bxe4 {[%emt 0:00:32]} Bxe4 {[%emt 0:00:05]} 32. b3 {[%emt 0:01:01]} Nb6 {[%emt 0:00:03]} 33. Kc3 {[%emt 0:00:48]} Nd5+ {[%emt 0:00:31]} 34. Nxd5 {[%emt 0:00:05]} Bxd5 {[%emt 0:00:02]} 35. Ne3 {[%emt 0:00:33]} Be4 {[%emt 0:00:04]} 36. d5 {[%emt 0:01:10]} Kf8 {[%emt 0:00:04]} 37. Kd4 {[%emt 0:00:04]} Ke8 {[%emt 0:00:17]} 38. b4 {[%emt 0:00:20]} Kd7 {[%emt 0:00:04]} 39. Ke5 {[%emt 0:00:28]} 1-0

[Event "10th Uppsala Young Champions 2023"]
[Site "Uppsala"]
[Date "2023.10.28"]
[Round "3.11"]
[White "Ostensson, Julia"]
[Black "Frank, Anton"]
[Result "1/2-1/2"]
[ECO "C47"]
[WhiteElo "1878"]
[BlackElo "1997"]
[Annotator "ChessBase"]
[PlyCount "100"]
[EventDate "2023.10.27"]
[EventType "swiss"]
[EventCountry "SWE"]
[SourceTitle "playchess.com"]
[Source "ChessBase"]
[SourceQuality "1"]
[TimeControl "5400+30"]

1. e4 {[%emt 0:00:03]} e5 {[%emt 0:00:04]} 2. Nf3 {[%emt 0:00:04]} Nc6 {[%emt 0:00:08]} 3. Nc3 {[%emt 0:00:23]} Nf6 {[%emt 0:00:08]} 4. d4 {[%emt 0:00:04]} exd4 {[%emt 0:00:04]} 5. Nxd4 {[%emt 0:00:04]} Bb4 {[%emt 0:00:08]} 6. Nxc6 {[%emt 0:00:04]} bxc6 {[%emt 0:00:09]} 7. Bd3 {[%emt 0:00:02]} O-O {[%emt 0:00:14]} 8. O-O {[%emt 0:00:06]} d5 {[%emt 0:00:03]} 9. exd5 {[%emt 0:00:05]} Bg4 {[%emt 0:00:06]} 10. Ne2 {[%emt 0:00:51]} cxd5 {[%emt 0:00:10]} 11. h3 {[%emt 0:00:36]} Bh5 {[%emt 0:00:11]} 12. c4 {[%emt 0:01:19]} Re8 {[%emt 0:00:22]} 13. Qc2 {[%emt 0:00:08]} Bg6 {[%emt 0:00:08]} 14. Bxg6 {[%emt 0:00:20]} hxg6 {[%emt 0:00:09]} 15. Rd1 {[%emt 0:02:09]} Qe7 {[%emt 0:10:51]} 16. Be3 {[%emt 0:00:09]} Bd6 {[%emt 0:02:13]} 17. Nd4 {[%emt 0:05:49]} Qe5 {[%emt 0:04:28]} 18. Nf3 {[%emt 0:00:06]} Qh5 {[%emt 0:00:32]} 19. Bg5 {[%emt 0:07:38]} dxc4 {[%emt 0:05:39]} 20. Rd4 {[%emt 0:06:53]} Nh7 {[%emt 0:07:49]} 21. Rh4 {[%emt 0:16:43]} Nxg5 {[%emt 0:00:09]} 22. Rxh5 {[%emt 0:00:04]} Nxf3+ {[%emt 0:00:13]} 23. gxf3 {[%emt 0:00:04]} gxh5 {[%emt 0:00:12]} 24. Kf1 {[%emt 0:26:11]} Rab8 {[%emt 0:06:41]} 25. Re1 {[%emt 0:06:47]} Rxe1+ {[%emt 0:10:36]} 26. Kxe1 {[%emt 0:00:05]} g6 {[%emt 0:00:28]} 27. f4 {[%emt 0:01:54]} c3 {[%emt 0:03:44]} 28. bxc3 {[%emt 0:05:21]} Bxf4 {[%emt 0:00:13]} 29. Qa4 {[%emt 0:02:21]} Be5 {[%emt 0:00:46]} 30. Qxa7 {[%emt 0:00:42]} Bxc3+ {[%emt 0:01:37]} 31. Ke2 {[%emt 0:00:59]} Re8+ {[%emt 0:00:33]} 32. Kf3 {[%emt 0:00:32]} Be5 {[%emt 0:01:56]} 33. a4 {[%emt 0:00:47]} Re6 {[%emt 0:17:00]} 34. a5 {[%emt 0:01:46]} Kg7 {[%emt 0:00:39]} 35. a6 {[%emt 0:01:15]} Bf6 {[%emt 0:05:12]} 36. Qb7 {[%emt 0:09:47]} Bd4 {[%emt 0:01:38]} 37. a7 {[%emt 0:05:57]} Rf6+ {[%emt 0:01:34]} 38. Ke4 {[%emt 0:00:01]} Bxa7 {[%emt 0:00:15]} 39. Qxa7 {[%emt 0:00:02]} Rf5 {[%emt 0:01:06]} 40. f4 {[%emt 0:01:07]} c5 {[%emt 0:00:20]} 41. h4 {[%emt 0:00:31]} Kf8 {[%emt 0:03:03]} 42. Qc7 {[%emt 0:00:38]} Kg8 {[%emt 0:02:20]} 43. Qd8+ {[%emt 0:00:34]} Kg7 {[%emt 0:00:11]} 44. Qd6 {[%emt 0:00:18]} Kg8 {[%emt 0:00:30]} 45. Kd3 {[%emt 0:00:38]} Kg7 {[%emt 0:03:17]} 46. Kc4 {[%emt 0:00:21]} Kg8 {[%emt 0:01:40]} 47. Kb5 {[%emt 0:00:10]} Kg7 {[%emt 0:00:09]} 48. Qc7 {[%emt 0:00:23]} Kg8 {[%emt 0:02:10]} 49. Kb6 {[%emt 0:00:44]} Rd5 {[%emt 0:04:24]} 50. Kc6 {[%emt 0:00:12]} Rf5 {[%emt 0:01:28]} 1/2-1/2

[Event "10th Uppsala Young Champions 2023"]
[Site "Uppsala"]
[Date "2023.10.29"]
[Round "4.1"]
[White "Stefansson, Vignir Vatnar"]
[Black "Gavrilescu, David"]
[Result "1/2-1/2"]
[ECO "E08"]
[WhiteElo "2484"]
[BlackElo "2534"]
[Annotator "RC"]
[PlyCount "80"]
[EventDate "2023.10.27"]
[EventType "swiss"]
[EventCountry "SWE"]
[SourceTitle "playchess.com"]
[Source "ChessBase"]
[SourceQuality "1"]
[TimeControl "5400+30"]

1. d4 {[%emt 0:00:36]} d5 {[%emt 0:00:17]} 2. c4 {[%emt 0:00:58]} e6 {[%emt 0:00:12]} 3. Nf3 {[%emt 0:00:14]} Nf6 {[%emt 0:00:19]} 4. g3 {[%emt 0:00:15]} Bb4+ {[%emt 0:00:28]} 5. Bd2 {[%emt 0:00:46]} Be7 {[%emt 0:00:44]} 6. Bg2 {[%emt 0:00:10]} c6 {[%emt 0:00:29]} 7. Qc2 {[%emt 0:01:47]} Nbd7 {[%emt 0:00:35]} 8. Bf4 {[%emt 0:00:21]} a5 {[%emt 0:02:26]} 9. O-O {[%emt 0:00:32]} O-O {[%emt 0:00:11]} 10. Rd1 {[%emt 0:06:25]} h6 {[%emt 0:00:40]} 11. b3 {[%emt 0:07:19]} b6 {[%emt 0:06:00]} 12. Ne5 {[%emt 0:00:39]} Bb7 {[%emt 0:07:34]} 13. Nc3 {[%emt 0:00:51]} Rc8 {[%emt 0:08:28]} 14. e4 {[%emt 0:02:22]} Bb4 {[%emt 0:07:26]} 15. Nxd7 {[%emt 0:16:09]} Nxd7 {[%emt 0:01:17]} 16. a3 {[%emt 0:00:53]} Be7 {[%emt 0:01:27]} 17. Qb2 {[%emt 0:00:26]} Nf6 {[%emt 0:04:21]} 18. Rac1 {[%emt 0:00:28]} Ba6 {[%emt 0:05:36]} 19. Qa2 {[%emt 0:07:13]} Qd7 {[%emt 0:05:17]} 20. Be5 {[%emt 0:04:04]} Rfd8 {[%emt 0:03:58]} 21. cxd5 {[%emt 0:03:56]} cxd5 {[%emt 0:00:23]} 22. Bxf6 {[%emt 0:00:18]} Bxf6 {[%emt 0:00:06]} 23. exd5 {[%emt 0:00:03]} exd5 {[%emt 0:12:50]} 24. Nxd5 {[%emt 0:00:13]} Rxc1 {[%emt 0:00:07]} 25. Rxc1 {[%emt 0:02:17]} Bxd4 {[%emt 0:02:05]} 26. Rd1 {[%emt 0:03:12]} Qg4 {[%emt 0:01:23]} 27. Re1 {[%emt 0:17:58]} Bc5 {[%emt 0:02:18]} 28. Qd2 {[%emt 0:00:13]} Qg5 {[%emt 0:02:41]} 29. Qxg5 {[%emt 0:01:19]} hxg5 {[%emt 0:00:11]} 30. b4 {[%emt 0:00:02]} axb4 {[%emt 0:00:08]} 31. axb4 {[%emt 0:00:05]} Bf8 {[%emt 0:00:21]} 32. Ra1 {[%emt 0:00:12]} Bb7 {[%emt 0:00:44]} 33. Nxb6 {[%emt 0:00:11]} Bxg2 {[%emt 0:00:05]} 34. Kxg2 {[%emt 0:00:05]} Bxb4 {[%emt 0:00:05]} 35. Nc4 {[%emt 0:00:14]} g6 {[%emt 0:00:44]} 36. Rb1 {[%emt 0:00:10]} Be7 {[%emt 0:00:17]} 37. Rb2 {[%emt 0:00:11]} Kg7 {[%emt 0:00:06]} 38. Ra2 {[%emt 0:00:03]} Bf6 {[%emt 0:00:08]} 39. Ne3 {[%emt 0:00:05]} Rd7 {[%emt 0:00:07]} 40. Rc2 {[%emt 0:00:04]} Be7 {[%emt 0:00:05]} 1/2-1/2

[Event "10th Uppsala Young Champions 2023"]
[Site "Uppsala"]
[Date "2023.10.29"]
[Round "4.2"]
[White "Omarsson, Adam"]
[Black "Sorensen, Hampus"]
[Result "0-1"]
[ECO "E43"]
[WhiteElo "1946"]
[BlackElo "2470"]
[Annotator "ChessBase"]
[PlyCount "52"]
[EventDate "2023.10.27"]
[EventType "swiss"]
[EventCountry "SWE"]
[SourceTitle "playchess.com"]
[Source "ChessBase"]
[SourceQuality "1"]
[TimeControl "5400+30"]

1. d4 {[%emt 0:00:03]} Nf6 {[%emt 0:00:24]} 2. c4 {[%emt 0:00:19]} e6 {[%emt 0:00:08]} 3. Nc3 {[%emt 0:00:07]} Bb4 {[%emt 0:00:07]} 4. e3 {[%emt 0:00:10]} b6 {[%emt 0:00:20]} 5. Bd3 {[%emt 0:00:52]} Bb7 {[%emt 0:00:08]} 6. Nf3 {[%emt 0:01:27]} O-O {[%emt 0:00:25]} 7. O-O {[%emt 0:01:57]} c5 {[%emt 0:00:33]} 8. a3 {[%emt 0:04:13]} Bxc3 {[%emt 0:00:22]} 9. bxc3 {[%emt 0:01:13]} Ne4 {[%emt 0:00:31]} 10. Qc2 {[%emt 0:06:26]} f5 {[%emt 0:00:10]} 11. Nd2 {[%emt 0:06:42]} Nd6 {[%emt 0:06:13]} 12. e4 {[%emt 0:08:19]} Nc6 {[%emt 0:09:27]} 13. Bb2 {[%emt 0:16:59]} Rc8 {[%emt 0:07:08]} 14. d5 {[%emt 0:05:58]} Ne7 {[%emt 0:26:11]} 15. e5 {[%emt 0:05:12]} Nf7 {[%emt 0:00:15]} 16. f4 {[%emt 0:00:06]} g5 {[%emt 0:01:44]} 17. g3 {[%emt 0:07:47]} Ng6 {[%emt 0:01:43]} 18. Rf3 {[%emt 0:02:05]} gxf4 {[%emt 0:03:51]} 19. gxf4 {[%emt 0:01:49]} Nxf4 {[%emt 0:00:11]} 20. Rg3+ {[%emt 0:00:19]} Kh8 {[%emt 0:00:26]} 21. Re1 {[%emt 0:01:52]} Rg8 {[%emt 0:01:39]} 22. Kf2 {[%emt 0:04:07]} Nh6 {[%emt 0:07:49]} 23. Bf1 {[%emt 0:07:18]} Ng4+ {[%emt 0:02:19]} 24. Kg1 {[%emt 0:00:24]} Nxh2 {[%emt 0:00:56]} 25. Rxg8+ {[%emt 0:00:10]} Qxg8+ {[%emt 0:02:55]} 26. Kxh2 {[%emt 0:00:06]} Qg4 {[%emt 0:00:07]} 0-1

[Event "10th Uppsala Young Champions 2023"]
[Site "Uppsala"]
[Date "2023.10.29"]
[Round "4.3"]
[White "Steiners, Emils"]
[Black "Falkevall, Axel"]
[Result "1/2-1/2"]
[ECO "E74"]
[WhiteElo "1914"]
[BlackElo "2280"]
[Annotator "ChessBase"]
[PlyCount "96"]
[EventDate "2023.10.27"]
[EventType "swiss"]
[EventCountry "SWE"]
[SourceTitle "playchess.com"]
[Source "ChessBase"]
[SourceQuality "1"]
[TimeControl "5400+30"]

1. d4 {[%emt 0:00:02]} Nf6 {[%emt 0:00:08]} 2. c4 {[%emt 0:00:05]} g6 {[%emt 0:00:04]} 3. Nc3 {[%emt 0:00:09]} Bg7 {[%emt 0:00:05]} 4. e4 {[%emt 0:00:09]} d6 {[%emt 0:00:06]} 5. Be2 {[%emt 0:00:02]} O-O {[%emt 0:00:09]} 6. Bg5 {[%emt 0:00:02]} c5 {[%emt 0:00:13]} 7. d5 {[%emt 0:00:02]} h6 {[%emt 0:00:06]} 8. Be3 {[%emt 0:00:04]} e6 {[%emt 0:00:09]} 9. Nf3 {[%emt 0:00:06]} exd5 {[%emt 0:00:34]} 10. exd5 {[%emt 0:01:50]} Re8 {[%emt 0:01:17]} 11. h3 {[%emt 0:06:58]} Rxe3 {[%emt 0:03:04]} 12. fxe3 {[%emt 0:00:24]} Qe7 {[%emt 0:00:06]} 13. Qd2 {[%emt 0:05:56]} Nbd7 {[%emt 0:01:15]} 14. O-O {[%emt 0:07:27]} Ne5 {[%emt 0:06:31]} 15. a3 {[%emt 0:11:00]} h5 {[%emt 0:21:40]} 16. b4 {[%emt 0:13:01]} Bh6 {[%emt 0:02:39]} 17. Kh1 {[%emt 0:04:40]} b6 {[%emt 0:04:18]} 18. Rae1 {[%emt 0:08:15]} Bd7 {[%emt 0:05:54]} 19. Nxe5 {[%emt 0:02:50]} Qxe5 {[%emt 0:00:10]} 20. Bd3 {[%emt 0:01:32]} Bg7 {[%emt 0:06:31]} 21. bxc5 {[%emt 0:06:40]} bxc5 {[%emt 0:00:17]} 22. Rb1 {[%emt 0:02:55]} Re8 {[%emt 0:12:17]} 23. Rf3 {[%emt 0:05:30]} Ng4 {[%emt 0:11:02]} 24. hxg4 {[%emt 0:04:40]} hxg4 {[%emt 0:00:23]} 25. Rff1 {[%emt 0:03:31]} Qh5+ {[%emt 0:11:42]} 26. Kg1 {[%emt 0:00:10]} g3 {[%emt 0:00:02]} 27. Rf4 {[%emt 0:04:02]} Bh6 {[%emt 0:01:13]} 28. Ne4 {[%emt 0:08:43]} Qh2+ {[%emt 0:00:46]} 29. Kf1 {[%emt 0:00:02]} Bxf4 {[%emt 0:00:38]} 30. exf4 {[%emt 0:01:01]} Bg4 {[%emt 0:03:13]} 31. Qe3 {[%emt 0:01:20]} Rxe4 {[%emt 0:04:50]} 32. Bxe4 {[%emt 0:01:28]} Qh1+ {[%emt 0:00:05]} 33. Qg1 {[%emt 0:00:02]} Qh6 {[%emt 0:00:03]} 34. Qe3 {[%emt 0:00:41]} Qh1+ {[%emt 0:00:04]} 35. Qg1 {[%emt 0:00:04]} Qh6 {[%emt 0:00:07]} 36. Bf3 {[%emt 0:02:08]} Qxf4 {[%emt 0:00:22]} 37. Ke2 {[%emt 0:00:57]} Qxc4+ {[%emt 0:01:19]} 38. Kd2 {[%emt 0:00:27]} Qa2+ {[%emt 0:00:39]} 39. Ke3 {[%emt 0:00:32]} Bf5 {[%emt 0:02:21]} 40. Rb8+ {[%emt 0:00:24]} Kg7 {[%emt 0:00:04]} 41. Kf4 {[%emt 0:00:37]} Qd2+ {[%emt 0:00:42]} 42. Kxg3 {[%emt 0:00:16]} Qg5+ {[%emt 0:00:10]} 43. Kf2 {[%emt 0:00:21]} Qd2+ {[%emt 0:00:07]} 44. Be2 {[%emt 0:00:46]} Qd4+ {[%emt 0:00:16]} 45. Kf1 {[%emt 0:00:04]} Qa1+ {[%emt 0:00:05]} 46. Kf2 {[%emt 0:00:46]} Qd4+ {[%emt 0:00:06]} 47. Kf1 {[%emt 0:00:11]} Qa1+ {[%emt 0:00:04]} 48. Kf2 {[%emt 0:00:05]} Qd4+ {[%emt 0:00:04]} 1/2-1/2

[Event "10th Uppsala Young Champions 2023"]
[Site "Uppsala"]
[Date "2023.10.29"]
[Round "4.4"]
[White "Oksendal, Martin"]
[Black "Grahn, Vidar"]
[Result "1/2-1/2"]
[ECO "B48"]
[WhiteElo "2123"]
[BlackElo "2133"]
[Annotator "RC"]
[PlyCount "104"]
[EventDate "2023.10.27"]
[EventType "swiss"]
[EventCountry "SWE"]
[SourceTitle "playchess.com"]
[Source "ChessBase"]
[SourceQuality "1"]
[TimeControl "5400+30"]

1. e4 {[%emt 0:00:22]} c5 {[%emt 0:00:03]} 2. Nf3 {[%emt 0:00:06]} e6 {[%emt 0:00:03]} 3. d4 {[%emt 0:00:11]} cxd4 {[%emt 0:00:03]} 4. Nxd4 {[%emt 0:00:04]} Nc6 {[%emt 0:00:04]} 5. Nc3 {[%emt 0:00:06]} Qc7 {[%emt 0:00:04]} 6. Be3 {[%emt 0:00:12]} a6 {[%emt 0:00:04]} 7. Qf3 {[%emt 0:00:09]} Nf6 {[%emt 0:00:05]} 8. O-O-O {[%emt 0:00:12]} Ne5 {[%emt 0:00:05]} 9. Qg3 {[%emt 0:00:06]} b5 {[%emt 0:00:04]} 10. Bf4 {[%emt 0:01:10]} d6 {[%emt 0:00:59]} 11. Bxe5 {[%emt 0:00:12]} dxe5 {[%emt 0:00:05]} 12. Bxb5+ {[%emt 0:00:06]} axb5 {[%emt 0:00:06]} 13. Ncxb5 {[%emt 1:34:04]} Qc5 {[%emt 0:00:13]} 14. b4 {[%emt 0:00:00]} Qb6 {[%emt 0:00:08]} 15. Qxe5 {[%emt 0:00:00]} Bxb4 {[%emt 0:00:27]} 16. Nc7+ {[%emt 0:00:00]} Kf8 {[%emt 0:00:07]} 17. Nxa8 {[%emt 0:00:00]} Ba3+ {[%emt 0:01:51]} 18. Kd2 {[%emt 0:00:00]} Qa7 {[%emt 0:00:50]} 19. Nb5 {[%emt 0:00:00]} Qxa8 {[%emt 0:02:14]} 20. Nxa3 {[%emt 0:00:00]} Qxa3 {[%emt 0:00:23]} 21. Rhe1 {[%emt 0:00:00]} Ke7 {[%emt 0:01:57]} 22. Qc7+ {[%emt 0:00:00]} Bd7 {[%emt 0:00:07]} 23. Re3 {[%emt 0:00:00]} Qb4+ {[%emt 0:03:03]} 24. Kc1 {[%emt 0:00:00]} Rd8 {[%emt 0:05:12]} 25. f3 {[%emt 0:00:00]} Ke8 {[%emt 0:04:23]} 26. Rb3 {[%emt 0:00:00]} Qa4 {[%emt 0:00:28]} 27. Rb8 {[%emt 0:00:00]} Rxb8 {[%emt 0:00:09]} 28. Qxb8+ {[%emt 0:00:00]} Ke7 {[%emt 0:00:05]} 29. Qd6+ {[%emt 0:00:00]} Ke8 {[%emt 0:00:37]} 30. Qb8+ {[%emt 0:00:00]} Ke7 {[%emt 0:00:04]} 31. Qd6+ {[%emt 0:00:00]} Ke8 {[%emt 0:00:25]} 32. Rd4 {[%emt 0:00:00]} Qc6 {[%emt 0:06:02]} 33. Qb8+ {[%emt 0:00:00]} Qc8 {[%emt 0:05:02]} 34. Qd6 {[%emt 0:00:00]} Qc6 {[%emt 0:00:27]} 35. Qb8+ {[%emt 0:00:00]} Qc8 {[%emt 0:00:39]} 36. Qb4 {[%emt 0:00:00]} Ng8 {[%emt 0:15:39]} 37. Rc4 {[%emt 0:00:00]} Qa8 {[%emt 0:05:42]} 38. Rc7 {[%emt 0:00:00]} Qxa2 {[%emt 0:05:36]} 39. Qb8+ {[%emt 0:00:00]} Ke7 {[%emt 0:00:13]} 40. Qb4+ {[%emt 0:00:00]} Ke8 {[%emt 0:01:26]} 41. Qb8+ {[%emt 0:00:00]} Ke7 {[%emt 0:00:05]} 42. Rxd7+ {[%emt 0:00:00]} Kxd7 {[%emt 0:00:11]} 43. Qxg8 {[%emt 0:00:00]} Qa1+ {[%emt 0:00:31]} 44. Kd2 {[%emt 0:00:00]} Qd4+ {[%emt 0:00:12]} 45. Ke2 {[%emt 0:00:00]} Qc4+ {[%emt 0:00:17]} 46. Kd2 {[%emt 0:00:00]} Qd4+ {[%emt 0:00:05]} 47. Ke2 {[%emt 0:00:00]} Qc4+ {[%emt 0:00:02]} 48. Kf2 {[%emt 0:00:00]} Qc5+ {[%emt 0:00:08]} 49. Kg3 {[%emt 0:00:00]} Qg5+ {[%emt 0:00:07]} 50. Kh3 {[%emt 0:00:00]} Qh5+ {[%emt 0:00:04]} 51. Kg3 {[%emt 0:00:00]} Qg5+ {[%emt 0:00:03]} 52. Kh3 {[%emt 0:00:00]} Qh5+ {[%emt 0:00:04]} 1/2-1/2

[Event "10th Uppsala Young Champions 2023"]
[Site "Uppsala"]
[Date "2023.10.29"]
[Round "4.5"]
[White "Domalchuk-Jonasson, Aleksandr"]
[Black "Seiger, Vidar"]
[Result "1-0"]
[ECO "A49"]
[WhiteElo "2392"]
[BlackElo "1908"]
[Annotator "RC"]
[PlyCount "59"]
[EventDate "2023.10.27"]
[EventType "swiss"]
[EventCountry "SWE"]
[SourceTitle "playchess.com"]
[Source "ChessBase"]
[SourceQuality "1"]
[TimeControl "5400+30"]

1. g3 {[%emt 0:00:08]} Nf6 {[%emt 0:01:31]} 2. Bg2 {[%emt 0:00:15]} g6 {[%emt 0:00:10]} 3. Nf3 {[%emt 0:00:50]} Bg7 {[%emt 0:00:10]} 4. O-O {[%emt 0:00:06]} O-O {[%emt 0:00:09]} 5. d4 {[%emt 0:00:02]} d6 {[%emt 0:00:09]} 6. b3 {[%emt 0:00:29]} Nbd7 {[%emt 0:05:57]} 7. Bb2 {[%emt 0:00:30]} e5 {[%emt 0:00:20]} 8. dxe5 {[%emt 0:00:54]} Ng4 {[%emt 0:00:02]} 9. Qc1 {[%emt 0:02:48]} Ngxe5 {[%emt 0:02:02]} 10. Nbd2 {[%emt 0:01:02]} Qe7 {[%emt 0:02:56]} 11. c4 {[%emt 0:01:31]} c6 {[%emt 1:22:34]} 12. Rd1 {[%emt 0:01:18]} Nc5 {[%emt 0:00:00]} 13. Nxe5 {[%emt 0:01:21]} Bxe5 {[%emt 0:00:00]} 14. Bxe5 {[%emt 0:02:51]} dxe5 {[%emt 0:00:00]} 15. Qa3 {[%emt 1:23:55]} Bf5 {[%emt 0:00:00]} 16. b4 {[%emt 0:00:00]} Nd7 {[%emt 0:00:00]} 17. Qc3 {[%emt 0:00:00]} Rfd8 {[%emt 0:00:00]} 18. a3 {[%emt 0:00:00]} a5 {[%emt 0:00:00]} 19. bxa5 {[%emt 0:00:00]} e4 {[%emt 0:00:00]} 20. Nb3 {[%emt 0:00:00]} Qe5 {[%emt 0:00:00]} 21. Rac1 {[%emt 0:00:00]} Qxc3 {[%emt 0:00:00]} 22. Rxc3 {[%emt 0:00:00]} Ne5 {[%emt 0:00:00]} 23. Rdc1 {[%emt 0:04:00]} b6 {[%emt 0:00:00]} 24. h3 {[%emt 0:00:00]} h5 {[%emt 0:00:00]} 25. axb6 {[%emt 0:00:00]} Rxa3 {[%emt 0:00:00]} 26. Nc5 {[%emt 0:00:00]} Rxc3 {[%emt 0:00:00]} 27. Rxc3 {[%emt 0:00:00]} Rd1+ {[%emt 0:00:00]} 28. Kh2 {[%emt 0:00:00]} Rb1 {[%emt 0:00:00]} 29. b7 {[%emt 0:00:00]} Nd7 {[%emt 0:00:00]} 30. Rb3 {[%emt 0:00:00]} 1-0

[Event "10th Uppsala Young Champions 2023"]
[Site "Uppsala"]
[Date "2023.10.29"]
[Round "4.6"]
[White "Tripathi, Pratyush"]
[Black "Harish, Neeraj"]
[Result "1/2-1/2"]
[ECO "D85"]
[WhiteElo "1801"]
[BlackElo "2076"]
[Annotator "NA"]
[PlyCount "81"]
[EventDate "2023.10.27"]
[EventType "swiss"]
[EventCountry "SWE"]
[SourceTitle "playchess.com"]
[Source "ChessBase"]
[SourceQuality "1"]
[TimeControl "5400+30"]

1. d4 {[%emt 0:00:31]} Nf6 {[%emt 0:00:10]} 2. c4 {[%emt 0:00:07]} g6 {[%emt 0:00:04]} 3. Nc3 {[%emt 0:00:09]} d5 {[%emt 0:00:07]} 4. cxd5 {[%emt 0:00:05]} Nxd5 {[%emt 0:00:07]} 5. Bd2 {[%emt 0:00:05]} Bg7 {[%emt 0:00:06]} 6. e4 {[%emt 0:00:05]} Nxc3 {[%emt 0:00:06]} 7. Bxc3 {[%emt 0:00:05]} O-O {[%emt 0:00:07]} 8. Qd2 {[%emt 0:00:09]} c5 {[%emt 0:02:17]} 9. dxc5 {[%emt 0:01:55]} Qxd2+ {[%emt 0:03:45]} 10. Kxd2 {[%emt 0:02:04]} Bxc3+ {[%emt 0:00:25]} 11. Kxc3 {[%emt 0:03:36]} Nd7 {[%emt 0:01:09]} 12. c6 {[%emt 0:08:38]} bxc6 {[%emt 0:00:17]} 13. f3 {[%emt 0:01:42]} Rb8 {[%emt 0:02:18]} 14. Ne2 {[%emt 0:03:27]} Nb6 {[%emt 0:05:50]} 15. b3 {[%emt 0:05:11]} f5 {[%emt 0:00:10]} 16. Ng3 {[%emt 0:09:27]} fxe4 {[%emt 0:09:19]} 17. Nxe4 {[%emt 0:00:15]} Bf5 {[%emt 0:00:19]} 18. Ng3 {[%emt 0:04:57]} Nd5+ {[%emt 0:03:50]} 19. Kb2 {[%emt 0:03:05]} Nf4 {[%emt 0:04:20]} 20. Bc4+ {[%emt 0:09:48]} Kg7 {[%emt 0:00:27]} 21. Nxf5+ {[%emt 0:00:30]} Rxf5 {[%emt 0:00:10]} 22. g3 {[%emt 0:00:08]} Nd5 {[%emt 0:00:08]} 23. Bxd5 {[%emt 0:01:57]} cxd5 {[%emt 0:00:08]} 24. Rhe1 {[%emt 0:02:11]} e5 {[%emt 0:02:44]} 25. Rac1 {[%emt 0:00:31]} Rb7 {[%emt 0:00:29]} 26. Rc5 {[%emt 0:03:06]} Rd7 {[%emt 0:00:19]} 27. g4 {[%emt 0:02:53]} Rxf3 {[%emt 0:00:07]} 28. Rxe5 {[%emt 0:00:05]} Rf2+ {[%emt 0:01:38]} 29. Rc2 {[%emt 0:00:06]} Rf4 {[%emt 0:00:31]} 30. g5 {[%emt 0:09:58]} Rf5 {[%emt 0:02:49]} 31. Rxf5 {[%emt 0:03:29]} gxf5 {[%emt 0:00:08]} 32. Rc6 {[%emt 0:00:06]} Rf7 {[%emt 0:13:48]} 33. Kc3 {[%emt 0:05:37]} f4 {[%emt 0:01:01]} 34. Kd2 {[%emt 0:00:09]} d4 {[%emt 0:17:49]} 35. Ke2 {[%emt 0:02:07]} Rd7 {[%emt 0:03:40]} 36. Rf6 {[%emt 0:02:13]} d3+ {[%emt 0:04:44]} 37. Kd2 {[%emt 0:00:17]} Rd4 {[%emt 0:00:09]} 38. h4 {[%emt 0:01:33]} h5 {[%emt 0:01:18]} 39. a3 {[%emt 0:02:07]} a5 {[%emt 0:01:57]} 40. Rf5 {[%emt 0:00:52]} a4 {[%emt 0:01:25]} 41. bxa4 {[%emt 0:01:37]} 1/2-1/2